Workbook

Sheet Disclaimer
G8: This software is offered as is, without warranty or promise of support of any kind either expressed or implied. Under no circumstance will the National Academy of Sciences or the Transportation Research Board (collectively “TRB”) be liable for any loss or damage caused by the installation or operation of this product. TRB makes no representation or warranty of any kind, expressed or implied, in fact or in law, including without limitation, the warranty of merchantability or the warranty of fitness for a particular purpose, and shall not in any case be liable for any consequential or special damages.

Sheet Form
B2: ROADSIDE HARDWARE REPLACEMENT ASSESSMENT WORKSHEET | BA2: 0 | BB2: =-O36 -> 0
B3: Intructions: | E3: Enter information on the project or policy being considered in the yellow shaded cells. Values in grey shaded cells are default values but can be changed if desired. | BA3: 1 | BB3: =$O$38 -> 0
B4: Project Name: | BA4: =BA3+1 -> 2 | BB4: 0
BA5: =BA4+1 -> 3 | BB5: 0
B6: Risk Assessment of Existing Hardware | BA6: 4 | BB6: 0
B7: Using state or district wide police reported crash data determine the number of fatal and serious injury crashes that occurred involving the existing hardware. If an in-service evaluation of the hardware is avaiable use the crash severity performance from that source. Use as many years of crash data as are available and enter the appropriate values in the yellow shaded cells. Three columns are provided to account for associated roadside hardware. For example, replacing a guardrail may also require replacing the associated terminals, anchors and transitions associated with that guardrail. Place information for each type of hardware in one of the three columns. | BA7: 5 | BB7: 0
BA8: 6 | BB8: 0
L9: Symbol | BA9: 7 | BB9: 0
C10: 1 | D10: Enter the number of years of crash data: | L10: YCD | BA10: 8 | BB10: 0
C11: 2 | D11: Enter the total number of crashes with the existing hardware: | L11: NCj | BA11: 9 | BB11: 0
C12: 3 | D12: Enter the number of fatal and serious injury crashes with the existing hardware: | L12: NFSCj | BA12: 10 | BB12: 0
C13: 4 | D13: Enter the desired cofidence interval (e.g., 85th percentile): | L13: CL | O13: 0.85 | T13: 0.85 | Y13: 0.85 | BA13: 11 | BB13: 0
O14: =-_xlfn.NORM.INV((1-O13)/2,0,1) -> 1.439531471 | T14: =-_xlfn.NORM.INV((1-T13)/2,0,1) -> 1.439531471 | Y14: =-_xlfn.NORM.INV((1-Y13)/2,0,1) -> 1.439531471 | BA14: 12 | BB14: 0
C15: 5 | D15: ="Calculate the mean risk of fatal or serious injury with the existing hardware with "&100*O13&"th percentile confidence:" -> Calculate the mean risk of fatal or serious injury with the existing hardware with 85th percentile confidence: | L15: REHJ | M15: =IFERROR( (( (O15+((O14^2)/(2*O$11)) /(1+(O14^2)/O$11)) - (O14*SQRT( ((O15*(1-O15)/O11) +((O14^2)/(4*O$11^2)))/(1+((O14^2)/O$11))) ) )),"") ->  | N15: < | O15: =IF(AND(O12<>"",O11<>""),O12/O11,"") ->  | P15: < | Q15: =IFERROR( (( (O15+((O14^2)/(2*O$11)) /(1+(O14^2)/O$11)) + (O14*SQRT( ((O15*(1-O15)/O11) +((O14^2)/(4*O$11^2)))/(1+((O14^2)/O$11))) ) )),"") ->  | R15: =IFERROR( (( (T15+((T14^2)/(2*T$11)) /(1+(T14^2)/T$11)) - (T14*SQRT( ((T15*(1-T15)/T11) +((T14^2)/(4*T$11^2)))/(1+((T14^2)/T$11))) ) )),"") ->  | S15: < | T15: =IF(AND(T12<>"",T11<>""),T12/T11,"") ->  | U15: < | V15: =IFERROR( (( (T15+((T14^2)/(2*T$11)) /(1+(T14^2)/T$11)) + (T14*SQRT( ((T15*(1-T15)/T11) +((T14^2)/(4*T$11^2)))/(1+((T14^2)/T$11))) ) )),"") ->  | W15: =IFERROR( (( (Y15+((Y14^2)/(2*Y$11)) /(1+(Y14^2)/Y$11)) - (Y14*SQRT( ((Y15*(1-Y15)/Y11) +((Y14^2)/(4*Y$11^2)))/(1+((Y14^2)/Y$11))) ) )),"") ->  | X15: < | Y15: =IF(AND(Y12<>"",Y11<>""),Y12/Y11,"") ->  | Z15: < | AA15: =IFERROR( (( (Y15+((Y14^2)/(2*Y$11)) /(1+(Y14^2)/Y$11)) + (Y14*SQRT( ((Y15*(1-Y15)/Y11) +((Y14^2)/(4*Y$11^2)))/(1+((Y14^2)/Y$11))) ) )),"") ->  | AB15: =IFERROR(AD15-_xlfn.NORM.INV(AD13,0,1)*SQRT(AD15*(1-AD15)/AD11),"") ->  | BA15: 13 | BB15: 0
C16: 6 | D16: Enter the quantity of existing hardware in crash reporting area: | L16: QEHJ | BA16: 14 | BB16: 0
C17: 7 | D17: Enter the existing hardware exposure during the data collection period (i.e., million vehicle miles passing [MVMP] for guardrails and million vehicles passing for terminals [MVP]). | L17: EEHJ | P17: =IF(P16="ft","MVMP",IF(P16="ea","MVP","")) ->  | U17: =IF(U16="ft","MVMP",IF(U16="ea","MVP","")) ->  | Z17: =IF(Z16="ft","MVMP",IF(Z16="ea","MVP","")) ->  | BA17: 15 | BB17: 0
C18: 8 | D18: Calculate the total police reported crash rate. | L18: CREHJ | O18: =IFERROR(IF(P16="ft",(O11/O17),(O11/O17)),"") ->  | P18: =IF(P16="ft","crashes/MVMP",IF(P16="ea","crashes/MVP","")) ->  | T18: =IFERROR(IF(U16="ft",(T11/T17),(T11/T17)),"") ->  | U18: =IF(U16="ft","crashes/MVMP",IF(U16="ea","crashes/MVP","")) ->  | Y18: =IFERROR(IF(Z16="ft",(Y11/Y17),(Y11/Y17)),"") ->  | Z18: =IF(Z16="ft","crashes/MVMP",IF(Z16="ea","crashes/MVP","")) ->  | BA18: 16 | BB18: 0
BA19: 17 | BB19: 0
B20: Relative Risk Estimate for Replacement Hardware | BA20: 18 | BB20: 0
B21: Estimate the smallest likely risk of a fatal or serious injury with the replacement hardware. Generally, crash data or an in-service evaluation will not be available to determine this value so it must be estimated using engineering judgement. It should be less than the observed value for the existing hardware and must be greater than zero. Enter the estimates for each type of replacement hardware below: | BA21: 19 | BB21: 0
BA22: 20 | BB22: 0
C23: 9 | D23: Estimate of risk of fatal or serious injury given a crash with the replacement hardware: | L23: RRHJ | BA23: 21 | BB23: 0
C24: 10 | D24: ="Are the existing and replacement crash risk outside the "&RIGHT(O13,2)&"th confidence interval?" -> Are the existing and replacement crash risk outside the 85th confidence interval? | O24: =IF(O15="","",IF(OR(O23<M15,O23>Q15), "Yes", "No")) ->  | T24: =IF(T15="","",IF(OR(T23<R15,T23>V15), "Yes", "No")) ->  | Y24: =IF(Y15="","",IF(OR(Y23<W15,Y23>AA15), "Yes", "No")) ->  | BA24: 22 | BB24: 0
C25: 11 | D25: Calculate relative risk reduction of replacement hardware compared to existing hardware: | L25: RRRJ | O25: =IFERROR(IF(AND(O15>0,O23>0),(O15-O23)/O15,""),"") ->  | T25: =IFERROR(IF(AND(T15>0,T23>0),(T15-T23)/T15,""),"") ->  | Y25: =IFERROR(IF(AND(Y15>0,Y23>0),(Y15-Y23)/Y15,""),"") ->  | BA25: 23 | BB25: 0
B26: Project Details | BA26: 24 | BB26: 0
B27: Enter information about the proposed project. Use the project information along with the values determined in the previous sections to estimate the number of fatal and serious injury crashes avoided by replacing the existing hardware with upgraded hardware. | BA27: 25 | BB27: 0
C28: 12 | D28: Enter the design year AADT of the project: | L28: AADT | P28: veh/day | T28: =O28 -> 0 | U28: veh/day | Y28: =O28 -> 0 | Z28: veh/day | BA28: 26 | BB28: 0
C29: =C28+1 -> 13 | D29: Enter the amount of hardware installed on project: | L29: QEHJ | P29: =P16 -> 0 | U29: =U16 -> 0 | Z29: =Z16 -> 0 | BA29: 27 | BB29: 0
C30: =C29+1 -> 14 | D30: Enter the unit installed cost of the replacement hardware: | L30: UCIHJ | P30: =IF(P$29=" ","","$/"&P$29) -> $/0 | U30: =IF(U$29=" ","","$/"&U$29) -> $/0 | Z30: =IF(U$29=" ","","$/"&U$29) -> $/0 | BA30: 28 | BB30: 0
C31: 15 | D31: Enter the unit cost to remove existing hardware: | L31: UCRHJ | P31: =IF(P$29=" ","","$/"&P$29) -> $/0 | U31: =IF(U$29=" ","","$/"&U$29) -> $/0 | Z31: =IF(U$29=" ","","$/"&U$29) -> $/0 | BA31: 29 | BB31: 0
C32: 16 | D32: Calculate the total cost of installing the replacement hardware: | L32: CRHJ | O32: =O29*(O30+O31) -> 0 | P32: $ | T32: =T29*(T30+T31) -> 0 | U32: $ | Y32: =Y29*(Y30+Y31) -> 0 | Z32: $ | BA32: 30 | BB32: 0
C33: =C32+1 -> 17 | D33: Estimate the number of annual fatal and serious injury crashes avoided: | L33: FCSAJ | O33: =IFERROR(IF(P17="MVMP",(O18*O28*365*O29/(10^6*5280))*O15*O25,(O18*O28*365*O29/10^6)*O15*O25),"") ->  | P33: crashes/yr | T33: =IFERROR(IF(U17="MVMP",(T18*T28*365*T29/(10^6*5280))*T15*T25,(T18*T28*365*T29/10^6)*T15*T25),"") ->  | U33: crashes/yr | Y33: =IFERROR(IF(Z17="MVMP",(Y18*Y28*365*Y29/(10^6*5280))*Y15*Y25,(Y18*Y28*365*Y29/10^6)*Y15*Y25),"") ->  | Z33: crashes/yr | BA33: =BA32+1 -> 31 | BB33: 0
B34: Economic Analysis | BA34: =BA33+1 -> 32 | BB34: 0
B35: The expected number of fatal and serious injury crashes avoided calculated in the previous step are summed and assigned an economic value based on the FHWA's value of statistical life (VSL) recommendation. The internal rate of return where the sum of all the benefits in future years equals the construction investment in the design years is calculated. Generally, if the internal rate of return is less than 2% it is not the best use of funds. | BA35: 33 | BB35: 0
C36: 18 | D36: Calculate the total cost of the hardware replacement: | L36: TCRH | O36: =O32+T32+Y32 -> 0 | P36: $ | BA36: =BA35+1 -> 34 | BB36: 0
C37: =C36+1 -> 19 | D37: Enter the value of statistical life (VLS) or use the default value of $12.3 million: | L37: VSL | O37: 12300000 | P37: $ | BA37: 35 | BB37: 0
C38: 20 | D38: Calculate the annual societal benefit of the replacement: | L38: ABCA | O38: =IFERROR(O37*SUM(O33,T33,Y33),"") -> 0 | P38: $/yr | BA38: 36 | BB38: 0
C39: 21 | D39: Calculate the number of years to recoup investment at zero percent rate of return: | O39: =O36/O38 ->  | P39: yrs | BA39: 37 | BB39: 0
C40: 21 | D40: Enter the assumed service life or retain the assumed 25 year life. | L40: YL | O40: 25 | P40: yrs | AA40: Type CTRL+SHIFT+R | BA40: 38 | BB40: 0
C41: 22 | D41: ="Calculate the internal rate of return assuming a "&O40&" year design life." -> Calculate the internal rate of return assuming a 25 year design life. | L41: IIR | O41: =IFERROR(IRR(INDIRECT("R2C54:R" & $O$40+2 & "C54",FALSE))*100,"") ->  | P41: % | AA41: to Clear and Reset Form | BA41: 39 | BB41: 0
BA42: 40 | BB42: 0
BA43: 41 | BB43: 0
BA44: 42 | BB44: 0
BA45: 43 | BB45: 0
BA46: 44 | BB46: 0
BA47: 45 | BB47: 0
BA48: 46 | BB48: 0
BA49: 47 | BB49: 0
BA50: 48 | BB50: 0
BA51: 49 | BB51: 0
BA52: 50 | BB52: 0
BA53: 51 | BB53: 0
BA54: 52 | BB54: 0
BA55: 53 | BB55: 0
BA56: 54 | BB56: 0
BA57: 55 | BB57: 0
BA58: 56 | BB58: 0
BA59: 57 | BB59: 0
BA60: 58 | BB60: 0
BA61: 59 | BB61: 0
BA62: 60 | BB62: 0
BA63: 61 | BB63: 0
BA64: 62 | BB64: 0
BA65: 63 | BB65: 0
BA66: 64 | BB66: 0
BA67: 65 | BB67: =$O$38 -> 0
BA68: 66 | BB68: 0
BA69: =BA68+1 -> 67 | BB69: 0
BA70: 68 | BB70: 0
BA71: 69 | BB71: 0
BA72: 70 | BB72: 0
BA73: 71 | BB73: 0
BA74: 72 | BB74: 0
BA75: 73 | BB75: 0
BA76: 74 | BB76: 0
BA77: 75 | BB77: 0
BA78: 76 | BB78: 0
BA79: 77 | BB79: 0
BA80: 78 | BB80: 0
BA81: 79 | BB81: 0
BA82: 80 | BB82: 0
BA83: 81 | BB83: 0
BA84: 82 | BB84: 0
BA85: 83 | BB85: 0
BA86: 84 | BB86: 0
BA87: 85 | BB87: 0
BA88: 86 | BB88: 0
BA89: 87 | BB89: 0
BA90: 88 | BB90: 0
BA91: 89 | BB91: 0
BA92: 90 | BB92: 0
BA93: 91 | BB93: 0
BA94: 92 | BB94: 0
BA95: 93 | BB95: 0
BA96: 94 | BB96: 0
BA97: 95 | BB97: 0
BA98: 96 | BB98: 0
BA99: 97 | BB99: 0
BA100: 98 | BB100: 0
BA101: 99 | BB101: 0
BA102: 100 | BB102: 0
BA103: 101 | BB103: 0
BA104: 102 | BB104: 0
BA105: 103 | BB105: 0
BA106: 104 | BB106: 0
BA107: 105 | BB107: 0
BA108: 106 | BB108: 0
BA109: 107 | BB109: 0
BA110: 108 | BB110: 0
BA111: 109 | BB111: 0
BA112: 110 | BB112: 0
BA113: 111 | BB113: 0
BA114: 112 | BB114: 0
BA115: 113 | BB115: 0
BA116: 114 | BB116: 0
BA117: 115 | BB117: 0
BA118: 116 | BB118: 0
BA119: 117 | BB119: 0
BA120: 118 | BB120: 0
BA121: 119 | BB121: 0
BA122: 120 | BB122: 0
BA123: 121 | BB123: 0
BA124: 122 | BB124: 0
BA125: 123 | BB125: 0
BA126: 124 | BB126: 0
BA127: 125 | BB127: 0
BA128: 126 | BB128: 0
BA129: 127 | BB129: 0
BA130: 128 | BB130: 0
BA131: 129 | BB131: =$O$38 -> 0
BA132: 130 | BB132: 0
BA133: =BA132+1 -> 131 | BB133: 0
BA134: 132 | BB134: 0
BA135: 133 | BB135: 0
BA136: 134 | BB136: 0
BA137: 135 | BB137: 0
BA138: 136 | BB138: 0
BA139: 137 | BB139: 0
BA140: 138 | BB140: 0
BA141: 139 | BB141: 0
BA142: 140 | BB142: 0
BA143: 141 | BB143: 0
BA144: 142 | BB144: 0
BA145: 143 | BB145: 0
BA146: 144 | BB146: 0
BA147: 145 | BB147: 0
BA148: 146 | BB148: 0
BA149: 147 | BB149: 0
BA150: 148 | BB150: 0
BA151: 149 | BB151: 0
BA152: 150 | BB152: 0
BA153: 151 | BB153: 0
BA154: 152 | BB154: 0
BA155: 153 | BB155: 0
BA156: 154 | BB156: 0
BA157: 155 | BB157: 0
BA158: 156 | BB158: 0
BA159: 157 | BB159: 0
BA160: 158 | BB160: 0
BA161: 159 | BB161: 0
BA162: 160 | BB162: 0
BA163: 161 | BB163: 0
BA164: 162 | BB164: 0
BA165: 163 | BB165: 0
BA166: 164 | BB166: 0
BA167: 165 | BB167: 0
BA168: 166 | BB168: 0
BA169: 167 | BB169: 0
BA170: 168 | BB170: 0
BA171: 169 | BB171: 0
BA172: 170 | BB172: 0
BA173: 171 | BB173: 0
BA174: 172 | BB174: 0
BA175: 173 | BB175: 0
BA176: 174 | BB176: 0
BA177: 175 | BB177: 0
BA178: 176 | BB178: 0
BA179: 177 | BB179: 0
BA180: 178 | BB180: 0
BA181: 179 | BB181: 0
BA182: 180 | BB182: 0
BA183: 181 | BB183: 0
BA184: 182 | BB184: 0
BA185: 183 | BB185: 0
BA186: 184 | BB186: 0
BA187: 185 | BB187: 0
BA188: 186 | BB188: 0
BA189: 187 | BB189: 0
BA190: 188 | BB190: 0
BA191: 189 | BB191: 0
BA192: 190 | BB192: 0
BA193: 191 | BB193: 0
BA194: 192 | BB194: 0
BA195: 193 | BB195: =$O$38 -> 0
BA196: 194 | BB196: 0
BA197: =BA196+1 -> 195 | BB197: 0
BA198: 196 | BB198: 0
BA199: 197 | BB199: 0
BA200: 198 | BB200: 0
BA201: 199 | BB201: 0
... 128 more rows

Sheet Example
B2: ROADSIDE HARDWARE REPLACEMENT ASSESSMENT WORKSHEET | BA2: 0 | BB2: =-O36 -> -80525
B3: Intructions: | E3: Enter information on the project or policy being considered in the yellow shaded cells. Values in grey shaded cells are default values but can be changed if desired. | BA3: 1 | BB3: =$O$38 -> 2625.789948
B4: Project Name: | E4: Replace 27-inch PennDOT Type D guardrail and R350 Type E terminals with 31-inch MGS guardrail and MASH 2016 terminals | BA4: =BA3+1 -> 2 | BB4: 2625.789948
BA5: =BA4+1 -> 3 | BB5: 2625.789948
B6: Risk Assessment of Existing Hardware | BA6: 4 | BB6: 2625.789948
B7: Using state or district wide police reported crash data determine the number of fatal and serious injury crashes that occurred involving the existing hardware. If an in-service evaluation of the hardware is avaiable use the crash severity performance from that source. Use as many years of crash data as are available and enter the appropriate values in the yellow shaded cells. Three columns are provided to account for associated roadside hardware. For example, replacing a guardrail may also require replacing the associated terminals, anchors and transitions associated with that guardrail. Place information for each type of hardware in one of the three columns. | BA7: 5 | BB7: 2625.789948
BA8: 6 | BB8: 2625.789948
L9: Symbol | O9: 27" Type D GR | T9: R350 Type E | BA9: 7 | BB9: 2625.789948
C10: 1 | D10: Enter the number of years of crash data: | L10: YCD | O10: 6 | T10: 11 | BA10: 8 | BB10: 2625.789948
C11: 2 | D11: Enter the total number of crashes with the existing hardware: | L11: NCj | O11: 2400 | T11: 286 | BA11: 9 | BB11: 2625.789948
C12: 3 | D12: Enter the number of fatal and serious injury crashes with the existing hardware: | L12: NFSCj | O12: 17 | T12: 8 | BA12: 10 | BB12: 2625.789948
C13: 4 | D13: Enter the desired cofidence interval (e.g., 85th percentile): | L13: CL | O13: 0.85 | T13: 0.85 | Y13: 0.85 | BA13: 11 | BB13: 2625.789948
O14: =-_xlfn.NORM.INV((1-O13)/2,0,1) -> 1.439531471 | T14: =-_xlfn.NORM.INV((1-T13)/2,0,1) -> 1.439531471 | Y14: =-_xlfn.NORM.INV((1-Y13)/2,0,1) -> 1.439531471 | BA14: 12 | BB14: 2625.789948
C15: 5 | D15: ="Calculate the mean risk of fatal or serious injury with the existing hardware with "&100*O13&"th percentile confidence:" -> Calculate the mean risk of fatal or serious injury with the existing hardware with 85th percentile confidence: | L15: REHJ | M15: =IFERROR( (( (O15+((O14^2)/(2*O$11)) /(1+(O14^2)/O$11)) - (O14*SQRT( ((O15*(1-O15)/O11) +((O14^2)/(4*O$11^2)))/(1+((O14^2)/O$11))) ) )),"") -> 0.005013944344 | N15: < | O15: =IF(AND(O12<>"",O11<>""),O12/O11,"") -> 0.007083333333 | P15: < | Q15: =IFERROR( (( (O15+((O14^2)/(2*O$11)) /(1+(O14^2)/O$11)) + (O14*SQRT( ((O15*(1-O15)/O11) +((O14^2)/(4*O$11^2)))/(1+((O14^2)/O$11))) ) )),"") -> 0.0100154153 | R15: =IFERROR( (( (T15+((T14^2)/(2*T$11)) /(1+(T14^2)/T$11)) - (T14*SQRT( ((T15*(1-T15)/T11) +((T14^2)/(4*T$11^2)))/(1+((T14^2)/T$11))) ) )),"") -> 0.01712513358 | S15: < | T15: =IF(AND(T12<>"",T11<>""),T12/T11,"") -> 0.02797202797 | U15: < | V15: =IFERROR( (( (T15+((T14^2)/(2*T$11)) /(1+(T14^2)/T$11)) + (T14*SQRT( ((T15*(1-T15)/T11) +((T14^2)/(4*T$11^2)))/(1+((T14^2)/T$11))) ) )),"") -> 0.0460124332 | W15: =IFERROR( (( (Y15+((Y14^2)/(2*Y$11)) /(1+(Y14^2)/Y$11)) - (Y14*SQRT( ((Y15*(1-Y15)/Y11) +((Y14^2)/(4*Y$11^2)))/(1+((Y14^2)/Y$11))) ) )),"") ->  | X15: < | Y15: =IF(AND(Y12<>"",Y11<>""),Y12/Y11,"") ->  | Z15: < | AA15: =IFERROR( (( (Y15+((Y14^2)/(2*Y$11)) /(1+(Y14^2)/Y$11)) + (Y14*SQRT( ((Y15*(1-Y15)/Y11) +((Y14^2)/(4*Y$11^2)))/(1+((Y14^2)/Y$11))) ) )),"") ->  | AB15: =IFERROR(AD15-_xlfn.NORM.INV(AD13,0,1)*SQRT(AD15*(1-AD15)/AD11),"") ->  | BA15: 13 | BB15: 2625.789948
C16: 6 | D16: Enter the quantity of existing hardware in crash reporting area: | L16: QEHJ | O16: 35286240 | P16: ft | T16: 19724 | U16: ea | BA16: 14 | BB16: 2625.789948
C17: 7 | D17: Enter the existing hardware exposure during the data collection period (i.e., million vehicle miles passing [MVMP] for guardrails and million vehicles passing for terminals [MVP]). | L17: EEHJ | O17: 33077 | P17: =IF(P16="ft","MVMP",IF(P16="ea","MVP","")) -> MVMP | T17: 200592 | U17: =IF(U16="ft","MVMP",IF(U16="ea","MVP","")) -> MVP | Z17: =IF(Z16="ft","MVMP",IF(Z16="ea","MVP","")) ->  | BA17: 15 | BB17: 2625.789948
C18: 8 | D18: Calculate the total police reported crash rate. | L18: CREHJ | O18: =IFERROR(IF(P16="ft",(O11/O17),(O11/O17)),"") -> 0.0725579708 | P18: =IF(P16="ft","crashes/MVMP",IF(P16="ea","crashes/MVP","")) -> crashes/MVMP | T18: =IFERROR(IF(U16="ft",(T11/T17),(T11/T17)),"") -> 0.001425779692 | U18: =IF(U16="ft","crashes/MVMP",IF(U16="ea","crashes/MVP","")) -> crashes/MVP | Y18: =IFERROR(IF(Z16="ft",(Y11/Y17),(Y11/Y17)),"") ->  | Z18: =IF(Z16="ft","crashes/MVMP",IF(Z16="ea","crashes/MVP","")) ->  | BA18: 16 | BB18: 2625.789948
BA19: 17 | BB19: 2625.789948
B20: Relative Risk Estimate for Replacement Hardware | BA20: 18 | BB20: 2625.789948
B21: Estimate the smallest likely risk of a fatal or serious injury with the replacement hardware. Generally, crash data or an in-service evaluation will not be available to determine this value so it must be estimated using engineering judgement. It should be less than the observed value for the existing hardware and must be greater than zero. Enter the estimates for each type of replacement hardware below: | BA21: 19 | BB21: 2625.789948
O22: 31" MGS GR | T22: MASH Terminal | BA22: 20 | BB22: 2625.789948
C23: 9 | D23: Estimate of risk of fatal or serious injury given a crash with the replacement hardware: | L23: RRHJ | O23: 0.0053 | T23: 0.01395 | BA23: 21 | BB23: 2625.789948
C24: 10 | D24: ="Are the existing and replacement crash risk outside the "&RIGHT(O13,2)&"th confidence interval?" -> Are the existing and replacement crash risk outside the 85th confidence interval? | O24: =IF(O15="","",IF(OR(O23<M15,O23>Q15), "Yes", "No")) -> No | T24: =IF(T15="","",IF(OR(T23<R15,T23>V15), "Yes", "No")) -> Yes | Y24: =IF(Y15="","",IF(OR(Y23<W15,Y23>AA15), "Yes", "No")) ->  | BA24: 22 | BB24: 2625.789948
C25: 11 | D25: Calculate relative risk reduction of replacement hardware compared to existing hardware: | L25: RRRJ | O25: =IFERROR(IF(AND(O15>0,O23>0),(O15-O23)/O15,""),"") -> 0.2517647059 | T25: =IFERROR(IF(AND(T15>0,T23>0),(T15-T23)/T15,""),"") -> 0.5012875 | Y25: =IFERROR(IF(AND(Y15>0,Y23>0),(Y15-Y23)/Y15,""),"") ->  | BA25: 23 | BB25: 2625.789948
B26: Project Details | BA26: 24 | BB26: 2625.789948
B27: Enter information about the proposed project. Use the project information along with the values determined in the previous sections to estimate the number of fatal and serious injury crashes avoided by replacing the existing hardware with upgraded hardware. | BA27: 25 | BB27: 2625.789948
C28: 12 | D28: Enter the design year AADT of the project: | L28: AADT | O28: 1450 | P28: veh/day | T28: =O28 -> 1450 | U28: veh/day | Y28: =O28 -> 1450 | Z28: veh/day | BA28: 26 | BB28: 2625.789948
C29: =C28+1 -> 13 | D29: Enter the amount of hardware installed on project: | L29: QEHJ | O29: 1775 | P29: =P16 -> ft | T29: 18 | U29: =U16 -> ea | Z29: =Z16 ->  | BA29: 27 | BB29: 2625.789948
C30: =C29+1 -> 14 | D30: Enter the unit installed cost of the replacement hardware: | L30: UCIHJ | O30: 17 | P30: =IF(P$29=" ","","$/"&P$29) -> $/ft | T30: 2000 | U30: =IF(U$29=" ","","$/"&U$29) -> $/ea | Z30: =IF(U$29=" ","","$/"&U$29) -> $/ea | BA30: 28 | BB30: 2625.789948
C31: 15 | D31: Enter the unit cost to remove existing hardware: | L31: UCRHJ | O31: 2 | P31: =IF(P$29=" ","","$/"&P$29) -> $/ft | T31: 600 | U31: =IF(U$29=" ","","$/"&U$29) -> $/ea | Z31: =IF(U$29=" ","","$/"&U$29) -> $/ea | BA31: 29 | BB31: 2625.789948
C32: 16 | D32: Calculate the total cost of installing the replacement hardware: | L32: CRHJ | O32: =O29*(O30+O31) -> 33725 | P32: $ | T32: =T29*(T30+T31) -> 46800 | U32: $ | Y32: =Y29*(Y30+Y31) -> 0 | Z32: $ | BA32: 30 | BB32: 2625.789948
C33: =C32+1 -> 17 | D33: Estimate the number of annual fatal and serious injury crashes avoided: | L33: FCSAJ | O33: =IFERROR(IF(P17="MVMP",(O18*O28*365*O29/(10^6*5280))*O15*O25,(O18*O28*365*O29/10^6)*O15*O25),"") -> 2.302199511e-05 | P33: crashes/yr | T33: =IFERROR(IF(U17="MVMP",(T18*T28*365*T29/(10^6*5280))*T15*T25,(T18*T28*365*T29/10^6)*T15*T25),"") -> 0.0001904568624 | U33: crashes/yr | Y33: =IFERROR(IF(Z17="MVMP",(Y18*Y28*365*Y29/(10^6*5280))*Y15*Y25,(Y18*Y28*365*Y29/10^6)*Y15*Y25),"") ->  | Z33: crashes/yr | BA33: =BA32+1 -> 31 | BB33: 2625.789948
B34: Economic Analysis | BA34: =BA33+1 -> 32 | BB34: 2625.789948
B35: The expected number of fatal and serious injury crashes avoided calculated in the previous step are summed and assigned an economic value based on the FHWA's value of statistical life (VSL) recommendation. The internal rate of return where the sum of all the benefits in future years equals the construction investment in the design years is calculated. Generally, if the internal rate of return is less than 2% it is not the best use of funds. | BA35: 33 | BB35: =$O$38 -> 2625.789948
C36: 18 | D36: Calculate the total cost of the hardware replacement: | L36: TCRH | O36: =O32+T32+Y32 -> 80525 | P36: $ | BA36: =BA35+1 -> 34 | BB36: 2625.789948
C37: =C36+1 -> 19 | D37: Enter the value of statistical life (VLS) or use the default value of $12.3 million: | L37: VSL | O37: 12300000 | P37: $ | BA37: 35 | BB37: 2625.789948
C38: 20 | D38: Calculate the annual societal benefit of the replacement: | L38: ABCA | O38: =IFERROR(O37*SUM(O33,T33,Y33),"") -> 2625.789948 | P38: $/yr | BA38: 36 | BB38: 2625.789948
C39: 21 | D39: Calculate the number of years to recoup investment at zero percent rate of return: | O39: =O36/O38 -> 30.66696179 | P39: yrs | BA39: 37 | BB39: 2625.789948
C40: 21 | D40: Enter the assumed service life or retain the assumed 25 year life. | L40: YL | O40: 25 | P40: yrs | AA40: Type CTRL+SHIFT+R | BA40: 38 | BB40: 2625.789948
C41: 22 | D41: ="Calculate the internal rate of return assuming a "&O40&" year design life." -> Calculate the internal rate of return assuming a 25 year design life. | L41: IIR | O41: =IFERROR(IRR(INDIRECT("R2C54:R" & $O$40+2 & "C54",FALSE))*100,"") -> -1.513579163 | P41: % | AA41: to Clear and Reset Form | BA41: 39 | BB41: 2625.789948
BA42: 40 | BB42: 2625.789948
BA43: 41 | BB43: 2625.789948
BA44: 42 | BB44: 2625.789948
BA45: 43 | BB45: 2625.789948
BA46: 44 | BB46: 2625.789948
BA47: 45 | BB47: 2625.789948
BA48: 46 | BB48: 2625.789948
BA49: 47 | BB49: 2625.789948
BA50: 48 | BB50: 2625.789948
BA51: 49 | BB51: 2625.789948
BA52: 50 | BB52: 2625.789948
BA53: 51 | BB53: 2625.789948
BA54: 52 | BB54: 2625.789948
BA55: 53 | BB55: 2625.789948
BA56: 54 | BB56: 2625.789948
BA57: 55 | BB57: 2625.789948
BA58: 56 | BB58: 2625.789948
BA59: 57 | BB59: 2625.789948
BA60: 58 | BB60: 2625.789948
BA61: 59 | BB61: 2625.789948
BA62: 60 | BB62: 2625.789948
BA63: 61 | BB63: 2625.789948
BA64: 62 | BB64: 2625.789948
BA65: 63 | BB65: 2625.789948
BA66: 64 | BB66: 2625.789948
BA67: 65 | BB67: 2625.789948
BA68: 66 | BB68: 2625.789948
BA69: =BA68+1 -> 67 | BB69: =$O$38 -> 2625.789948
BA70: 68 | BB70: 2625.789948
BA71: 69 | BB71: 2625.789948
BA72: 70 | BB72: 2625.789948
BA73: 71 | BB73: 2625.789948
BA74: 72 | BB74: 2625.789948
BA75: 73 | BB75: 2625.789948
BA76: 74 | BB76: 2625.789948
BA77: 75 | BB77: 2625.789948
BA78: 76 | BB78: 2625.789948
BA79: 77 | BB79: 2625.789948
BA80: 78 | BB80: 2625.789948
BA81: 79 | BB81: 2625.789948
BA82: 80 | BB82: 2625.789948
BA83: 81 | BB83: 2625.789948
BA84: 82 | BB84: 2625.789948
BA85: 83 | BB85: 2625.789948
BA86: 84 | BB86: 2625.789948
BA87: 85 | BB87: 2625.789948
BA88: 86 | BB88: 2625.789948
BA89: 87 | BB89: 2625.789948
BA90: 88 | BB90: 2625.789948
BA91: 89 | BB91: 2625.789948
BA92: 90 | BB92: 2625.789948
BA93: 91 | BB93: 2625.789948
BA94: 92 | BB94: 2625.789948
BA95: 93 | BB95: 2625.789948
BA96: 94 | BB96: 2625.789948
BA97: 95 | BB97: 2625.789948
BA98: 96 | BB98: 2625.789948
BA99: 97 | BB99: 2625.789948
BA100: 98 | BB100: 2625.789948
BA101: 99 | BB101: 2625.789948
BA102: 100 | BB102: 2625.789948
BA103: 101 | BB103: 2625.789948
BA104: 102 | BB104: 2625.789948
BA105: 103 | BB105: 2625.789948
BA106: 104 | BB106: 2625.789948
BA107: 105 | BB107: 2625.789948
BA108: 106 | BB108: 2625.789948
BA109: 107 | BB109: 2625.789948
BA110: 108 | BB110: 2625.789948
BA111: 109 | BB111: 2625.789948
BA112: 110 | BB112: 2625.789948
BA113: 111 | BB113: 2625.789948
BA114: 112 | BB114: 2625.789948
BA115: 113 | BB115: 2625.789948
BA116: 114 | BB116: 2625.789948
BA117: 115 | BB117: 2625.789948
BA118: 116 | BB118: 2625.789948
BA119: 117 | BB119: 2625.789948
BA120: 118 | BB120: 2625.789948
BA121: 119 | BB121: 2625.789948
BA122: 120 | BB122: 2625.789948
BA123: 121 | BB123: 2625.789948
BA124: 122 | BB124: 2625.789948
BA125: 123 | BB125: 2625.789948
BA126: 124 | BB126: 2625.789948
BA127: 125 | BB127: 2625.789948
BA128: 126 | BB128: 2625.789948
BA129: 127 | BB129: 2625.789948
BA130: 128 | BB130: 2625.789948
BA131: 129 | BB131: 2625.789948
BA132: 130 | BB132: 2625.789948
BA133: =BA132+1 -> 131 | BB133: =$O$38 -> 2625.789948
BA134: 132 | BB134: 2625.789948
BA135: 133 | BB135: 2625.789948
BA136: 134 | BB136: 2625.789948
BA137: 135 | BB137: 2625.789948
BA138: 136 | BB138: 2625.789948
BA139: 137 | BB139: 2625.789948
BA140: 138 | BB140: 2625.789948
BA141: 139 | BB141: 2625.789948
BA142: 140 | BB142: 2625.789948
BA143: 141 | BB143: 2625.789948
BA144: 142 | BB144: 2625.789948
BA145: 143 | BB145: 2625.789948
BA146: 144 | BB146: 2625.789948
BA147: 145 | BB147: 2625.789948
BA148: 146 | BB148: 2625.789948
BA149: 147 | BB149: 2625.789948
BA150: 148 | BB150: 2625.789948
BA151: 149 | BB151: 2625.789948
BA152: 150 | BB152: 2625.789948
BA153: 151 | BB153: 2625.789948
BA154: 152 | BB154: 2625.789948
BA155: 153 | BB155: 2625.789948
BA156: 154 | BB156: 2625.789948
BA157: 155 | BB157: 2625.789948
BA158: 156 | BB158: 2625.789948
BA159: 157 | BB159: 2625.789948
BA160: 158 | BB160: 2625.789948
BA161: 159 | BB161: 2625.789948
BA162: 160 | BB162: 2625.789948
BA163: 161 | BB163: 2625.789948
BA164: 162 | BB164: 2625.789948
BA165: 163 | BB165: 2625.789948
BA166: 164 | BB166: 2625.789948
BA167: 165 | BB167: 2625.789948
BA168: 166 | BB168: 2625.789948
BA169: 167 | BB169: 2625.789948
BA170: 168 | BB170: 2625.789948
BA171: 169 | BB171: 2625.789948
BA172: 170 | BB172: 2625.789948
BA173: 171 | BB173: 2625.789948
BA174: 172 | BB174: 2625.789948
BA175: 173 | BB175: 2625.789948
BA176: 174 | BB176: 2625.789948
BA177: 175 | BB177: 2625.789948
BA178: 176 | BB178: 2625.789948
BA179: 177 | BB179: 2625.789948
BA180: 178 | BB180: 2625.789948
BA181: 179 | BB181: 2625.789948
BA182: 180 | BB182: 2625.789948
BA183: 181 | BB183: 2625.789948
BA184: 182 | BB184: 2625.789948
BA185: 183 | BB185: 2625.789948
BA186: 184 | BB186: 2625.789948
BA187: 185 | BB187: 2625.789948
BA188: 186 | BB188: 2625.789948
BA189: 187 | BB189: 2625.789948
BA190: 188 | BB190: 2625.789948
BA191: 189 | BB191: 2625.789948
BA192: 190 | BB192: 2625.789948
BA193: 191 | BB193: 2625.789948
BA194: 192 | BB194: 2625.789948
BA195: 193 | BB195: 2625.789948
BA196: 194 | BB196: 2625.789948
BA197: =BA196+1 -> 195 | BB197: =$O$38 -> 2625.789948
BA198: 196 | BB198: 2625.789948
BA199: 197 | BB199: 2625.789948
BA200: 198 | BB200: 2625.789948
BA201: 199 | BB201: 2625.789948
... 128 more rows

Sheet Formats (hidden)
B1: Nomenclature
B2: Symbol | C2: Step | D2: Row | E2: Description
A3: ea | B3: AADT | C3: 12 | D3: 28 | E3: Average daily traffic in vehicles/day.
A4: ft | B4: AADTo | E4: The measured average annual daily traffic in vehicles/day.
B5: ABCA | C5: 20 | D5: =1+D4 -> 1 | E5: Annual benefit of fatal and serious injury crashes avoided in dollars.
B6: CL | C6: 4 | D6: =1+D5 -> 2 | E6: Confidence level.
B7: CREHJ | C7: 8 | D7: =1+D6 -> 3 | E7: Police-reported crash rate for existing hardware type j in units of crashes/MVMP for continuous roadside hardware or crashes/MVP for discreet roadside hardware.
B8: CRHJ | C8: 16 | D8: =1+D7 -> 4 | E8: Cost of replacing hardware type j in dollars.
B9: EEHJ | C9: 7 | D9: 17 | E9: Existing hardware type j exposure in units of MVMP for continuous roadside hardware or MVP for discreet roadside hardware.
B10: FCSAJ | C10: 17 | D10: =1+D9 -> 18 | E10: Annual number of fatal and serious injury crashes avoided.
B11: G | E11: Traffic volume growth as a decimal.
B12: IIR | C12: 22 | D12: =1+D11 -> 1 | E12: Internal rate of return as a percent.
B13: m | E13: Number of types of hardware considered for replacement.
B14: MVMP | C14: 7 | D14: 17 | E14: Million vehicle miles passing continuous hardware type j.
B15: MVP | C15: 7 | D15: 17 | E15: Million vehicles passing discreet hardware type j.
B16: NCj | C16: 2 | D16: =1+D15 -> 18 | E16: Number of crashes of all severity involving hardware type j.
B17: NFSCj | C17: 3 | D17: =1+D16 -> 19 | E17: Number of fatal and serious injury crashes involving hardware type j.
B18: QEHJ | C18: 6 | D18: 16 | E18: Quantity of existing hardware type j in the same area used for collecting crash data inft for continuous hardware and each for discreet hardware.
B19: QEHJ | C19: 13 | D19: =1+D18 -> 17 | E19: Quantity of existing hardware type j in ft for continuous hardware and each for discreet hardware.
B20: REHJ | C20: 5 | D20: 15 | E20: Fatal and serious injury crash risk for existing hardware type j.
B21: RRHJ | C21: 9 | D21: 23 | E21: Fatal and serious injury crash risk for replacement hardware type j.
B22: RRRJ | C22: 11 | D22: =1+D21 -> 24 | E22: Relative risk reduction for replacing existing hardware type j with upgraded hardware.
B23: TCRH | C23: 18 | D23: =1+D22 -> 25 | E23: Total hardware replacement cost in dollars.
B24: UCIHJ | C24: 14 | D24: =1+D23 -> 26 | E24: Unit cost of installing replacement hardwdare type j in dollars
B25: UCRHJ | C25: 15 | D25: =1+D24 -> 27 | E25: Unit cost of removing existing hardwdare type j in dollars
B26: VSL | C26: 19 | D26: =1+D25 -> 28 | E26: Value of statistical life in dollars.
B27: YCD | C27: 1 | D27: 10 | E27: Years of available police-reported crash data.
B28: YD | E28: Number of years between the observed AADT and the design year in years.
B29: YL | C29: 21 | D29: =1+D28 -> 1 | E29: Project life in years.
E32: Extrapolating the VSL
E33: PT | F33: PO | G33: IT | H33: IO | I33: Epsilon | J33: VSLo | L33: VSL
E34: 258 | F34: 237 | G34: 949 | H34: 824 | I34: 0.55 | J34: 9.6 | K34: → | L34: =J34*(E34/F34)*(G34/H34)^I34 -> 11.29481296
E35: PT and PO are consumer price index (CPI) values https://www.bls.gov/regions/mid-atlantic/data/consumerpriceindexhistorical_us_table.htm
E36: IT and IO are median usual weekly earings (MUWE) from https://www.bls.gov/charts/usual-weekly-earnings/usual-weekly-earnings-over-time-total-men-women.htm
E39: VSL
E40: YR
E41: 2007 | F41: 5.8
E42: 2013 | F42: 9.1
E43: 2014 | F43: 9.2
E44: 2015 | F44: 9.4
E45: 2016 | F45: 9.6
E46: 2020 | F46: 12.3
